[Event "Live Chess"]
[Site "Chess.com"]
[Date "2010.12.05"]
[Round "-"]
[White "darkiknighti"]
[Black "hipposcottimus"]
[Result "0-1"]
[CurrentPosition "7k/pp4pp/2n5/8/3pN3/1P4P1/P1P4P/5q1K w - -"]
[Timezone "UTC"]
[ECO "D00"]
[ECOUrl "https://www.chess.com/openings/Queens-Pawn-Opening-1...d5-2.e3-Nf6"]
[UTCDate "2010.12.05"]
[UTCTime "03:54:53"]
[WhiteElo "1203"]
[BlackElo "1557"]
[TimeControl "120"]
[Termination "hipposcottimus won by checkmate"]
[StartTime "03:54:53"]
[EndDate "2010.12.05"]
[EndTime "03:58:13"]
[Link "https://www.chess.com/game/live/74164192"]

1. d4 {[%clk 0:02:00]} 1... d5 {[%clk 0:02:00]} 2. e3 {[%clk 0:01:59.6]} 2... Nf6 {[%clk 0:01:57.4]} 3. g3 {[%clk 0:01:59.2]} 3... c5 {[%clk 0:01:56.6]} 4. Bg2 {[%clk 0:01:57.1]} 4... e5 {[%clk 0:01:56.1]} 5. dxe5 {[%clk 0:01:55]} 5... Ne4 {[%clk 0:01:54.5]} 6. Nf3 {[%clk 0:01:48.3]} 6... Bg4 {[%clk 0:01:48.1]} 7. Nbd2 {[%clk 0:01:37.3]} 7... Be7 {[%clk 0:01:45]} 8. b3 {[%clk 0:01:29.6]} 8... f6 {[%clk 0:01:42.3]} 9. exf6 {[%clk 0:01:26.5]} 9... Bxf6 {[%clk 0:01:40.8]} 10. Rb1 {[%clk 0:01:25]} 10... O-O {[%clk 0:01:37.3]} 11. Bb2 {[%clk 0:01:20]} 11... Nc6 {[%clk 0:01:33.9]} 12. Bxf6 {[%clk 0:01:17.7]} 12... Qxf6 {[%clk 0:01:33.5]} 13. O-O {[%clk 0:01:16.1]} 13... Bxf3 {[%clk 0:01:32.6]} 14. Nxf3 {[%clk 0:01:13.6]} 14... Nc3 {[%clk 0:01:29.2]} 15. Qd3 {[%clk 0:01:05.8]} 15... Nxb1 {[%clk 0:01:27.3]} 16. Rxb1 {[%clk 0:01:03.7]} 16... d4 {[%clk 0:01:24.6]} 17. exd4 {[%clk 0:01:00.3]} 17... cxd4 {[%clk 0:01:23.9]} 18. Rd1 {[%clk 0:00:58.4]} 18... Rad8 {[%clk 0:01:20]} 19. Nd2 {[%clk 0:00:47.9]} 19... Qxf2+ {[%clk 0:01:16.2]} 20. Kh1 {[%clk 0:00:43]} 20... Rde8 {[%clk 0:01:13.5]} 21. Rf1 {[%clk 0:00:40.2]} 21... Re1 {[%clk 0:01:10]} 22. Qc4+ {[%clk 0:00:33.5]} 22... Kh8 {[%clk 0:01:06.5]} 23. Ne4 {[%clk 0:00:18.7]} 23... Rxf1+ {[%clk 0:01:04.6]} 24. Bxf1 {[%clk 0:00:15.2]} 24... Qf3+ {[%clk 0:01:03.7]} 25. Bg2 {[%clk 0:00:12.9]} 25... Qd1+ {[%clk 0:00:54.1]} 26. Qf1 {[%clk 0:00:05.5]} 26... Rxf1+ {[%clk 0:00:52.1]} 27. Bxf1 {[%clk 0:00:02.6]} 27... Qxf1# {[%clk 0:00:51.8]} 0-1

[Event "Live Chess"]
[Site "Chess.com"]
[Date "2010.12.05"]
[Round "-"]
[White "hipposcottimus"]
[Black "michael10582"]
[Result "1-0"]
[CurrentPosition "8/8/P6p/6pk/8/6P1/5K1P/1R6 b - -"]
[Timezone "UTC"]
[ECO "C40"]
[ECOUrl "https://www.chess.com/openings/Kings-Pawn-Opening-Kings-Knight-Busch-Gass-Gambit-3.Nxe5"]
[UTCDate "2010.12.05"]
[UTCTime "03:42:01"]
[WhiteElo "1380"]
[BlackElo "1391"]
[TimeControl "480"]
[Termination "hipposcottimus won by resignation"]
[StartTime "03:42:01"]
[EndDate "2010.12.05"]
[EndTime "03:53:23"]
[Link "https://www.chess.com/game/live/74161655"]

1. e4 {[%clk 0:08:00]} 1... e5 {[%clk 0:08:00]} 2. Nf3 {[%clk 0:07:58]} 2... Bc5 {[%clk 0:07:59.4]} 3. Nxe5 {[%clk 0:07:50.2]} 3... Qh4 {[%clk 0:07:58.3]} 4. d4 {[%clk 0:07:48.8]} 4... Qxe4+ {[%clk 0:07:53.5]} 5. Be3 {[%clk 0:07:44]} 5... d6 {[%clk 0:07:45]} 6. Nxf7 {[%clk 0:07:34.3]} 6... Kxf7 {[%clk 0:07:40.4]} 7. dxc5 {[%clk 0:07:22.4]} 7... dxc5 {[%clk 0:07:37.7]} 8. b3 {[%clk 0:07:03.1]} 8... Be6 {[%clk 0:07:28.8]} 9. Nc3 {[%clk 0:06:53.7]} 9... Qe5 {[%clk 0:07:11.2]} 10. Qd2 {[%clk 0:06:39.3]} 10... Nc6 {[%clk 0:07:04.2]} 11. Be2 {[%clk 0:06:33]} 11... Rd8 {[%clk 0:07:01.4]} 12. Bd3 {[%clk 0:06:16.9]} 12... c4 {[%clk 0:06:47.6]} 13. bxc4 {[%clk 0:06:09.9]} 13... Nb4 {[%clk 0:06:39.8]} 14. O-O {[%clk 0:05:56.4]} 14... Nf6 {[%clk 0:06:37.3]} 15. Rfe1 {[%clk 0:05:44.7]} 15... Ng4 {[%clk 0:06:29.7]} 16. f4 {[%clk 0:05:39.8]} 16... Qh5 {[%clk 0:06:18.7]} 17. g3 {[%clk 0:05:10.2]} 17... Bxc4 {[%clk 0:06:10.6]} 18. Bxc4+ {[%clk 0:05:02.4]} 18... Kg6 {[%clk 0:06:03.6]} 19. f5+ {[%clk 0:04:41.8]} 19... Qxf5 {[%clk 0:05:45.9]} 20. Nd5 {[%clk 0:04:19.3]} 20... Nxd5 {[%clk 0:05:32.1]} 21. Bd3 {[%clk 0:04:13.2]} 21... Ndxe3 {[%clk 0:04:31.3]} 22. Bxf5+ {[%clk 0:03:53.2]} 22... Nxf5 {[%clk 0:04:19.6]} 23. Qf4 {[%clk 0:03:34.5]} 23... Rhf8 {[%clk 0:03:59.2]} 24. Qxg4+ {[%clk 0:03:31.4]} 24... Kf7 {[%clk 0:03:56.3]} 25. Qxf5+ {[%clk 0:03:09.9]} 25... Kg8 {[%clk 0:03:54.3]} 26. Qe6+ {[%clk 0:03:04.8]} 26... Kh8 {[%clk 0:03:47.3]} 27. Rf1 {[%clk 0:03:03]} 27... Rfe8 {[%clk 0:03:43.7]} 28. Qf7 {[%clk 0:02:55]} 28... h6 {[%clk 0:03:37.1]} 29. Qxc7 {[%clk 0:02:38.2]} 29... Rc8 {[%clk 0:03:31.3]} 30. Qxb7 {[%clk 0:02:36.2]} 30... Rxc2 {[%clk 0:03:28.2]} 31. Qxa7 {[%clk 0:02:14.6]} 31... Ree2 {[%clk 0:03:09.9]} 32. Rf2 {[%clk 0:02:13.2]} 32... Rxf2 {[%clk 0:02:53.3]} 33. Qxf2 {[%clk 0:02:12]} 33... Rxf2 {[%clk 0:02:52.3]} 34. Kxf2 {[%clk 0:02:11.6]} 34... g5 {[%clk 0:02:51.4]} 35. Rb1 {[%clk 0:02:10.1]} 35... Kg7 {[%clk 0:02:51]} 36. a4 {[%clk 0:02:09.5]} 36... Kg6 {[%clk 0:02:50.5]} 37. a5 {[%clk 0:02:09.2]} 37... Kh5 {[%clk 0:02:48.2]} 38. a6 {[%clk 0:02:08.8]} 1-0

[Event "Live Chess"]
[Site "Chess.com"]
[Date "2010.12.05"]
[Round "-"]
[White "hipposcottimus"]
[Black "lukr"]
[Result "1-0"]
[CurrentPosition "r1b1k2r/p3nppp/2p1p3/3pP3/Q1pP4/R1q1BN2/3N1PPP/5RK1 b kq -"]
[Timezone "UTC"]
[ECO "C02"]
[ECOUrl "https://www.chess.com/openings/French-Defense-Advance-Nimzowitsch-System-4...Nc6"]
[UTCDate "2010.12.05"]
[UTCTime "03:33:45"]
[WhiteElo "1371"]
[BlackElo "1479"]
[TimeControl "600+5"]
[Termination "hipposcottimus won by resignation"]
[StartTime "03:33:45"]
[EndDate "2010.12.05"]
[EndTime "03:37:37"]
[Link "https://www.chess.com/game/live/74160113"]

1. e4 {[%clk 0:10:00]} 1... e6 {[%clk 0:10:00]} 2. d4 {[%clk 0:10:02.9]} 2... d5 {[%clk 0:10:01.7]} 3. e5 {[%clk 0:10:06.9]} 3... c5 {[%clk 0:10:02.7]} 4. Nf3 {[%clk 0:10:07.2]} 4... Nc6 {[%clk 0:10:04.3]} 5. Bb5 {[%clk 0:10:09.2]} 5... Qb6 {[%clk 0:10:05.8]} 6. Bxc6+ {[%clk 0:10:11.1]} 6... bxc6 {[%clk 0:10:07.3]} 7. Be3 {[%clk 0:10:13.2]} 7... Qxb2 {[%clk 0:10:06.9]} 8. Nbd2 {[%clk 0:10:14.6]} 8... c4 {[%clk 0:09:43.1]} 9. c3 {[%clk 0:10:01]} 9... Qxc3 {[%clk 0:09:37.8]} 10. O-O {[%clk 0:10:01.2]} 10... Bb4 {[%clk 0:09:16]} 11. Qa4 {[%clk 0:09:54.4]} 11... Ne7 {[%clk 0:08:53.4]} 12. a3 {[%clk 0:09:56.4]} 12... Bxa3 {[%clk 0:08:21.7]} 13. Rxa3 {[%clk 0:09:57.9]} 1-0

[Event "Live Chess"]
[Site "Chess.com"]
[Date "2010.12.05"]
[Round "-"]
[White "hipposcottimus"]
[Black "JetDash"]
[Result "0-1"]
[CurrentPosition "3R4/2k5/p6p/5R1p/P7/8/1P4PP/6K1 w - -"]
[Timezone "UTC"]
[ECO "C00"]
[ECOUrl "https://www.chess.com/openings/French-Defense-Knight-Variation"]
[UTCDate "2010.12.05"]
[UTCTime "03:24:17"]
[WhiteElo "1557"]
[BlackElo "1710"]
[TimeControl "60"]
[Termination "JetDash won on time"]
[StartTime "03:24:17"]
[EndDate "2010.12.05"]
[EndTime "03:26:34"]
[Link "https://www.chess.com/game/live/74158305"]

1. e4 {[%clk 0:01:00]} 1... e6 {[%clk 0:01:00]} 2. Nf3 {[%clk 0:00:59.6]} 2... h6 {[%clk 0:01:00]} 3. e5 {[%clk 0:00:58.6]} 3... a6 {[%clk 0:01:00]} 4. d4 {[%clk 0:00:58.2]} 4... c6 {[%clk 0:00:59.8]} 5. c4 {[%clk 0:00:57.7]} 5... d6 {[%clk 0:00:58.7]} 6. Nc3 {[%clk 0:00:57.2]} 6... d5 {[%clk 0:00:57.6]} 7. Bd2 {[%clk 0:00:53.5]} 7... Ne7 {[%clk 0:00:56.4]} 8. Be2 {[%clk 0:00:52]} 8... Ng6 {[%clk 0:00:55.5]} 9. O-O {[%clk 0:00:51.7]} 9... Be7 {[%clk 0:00:54.8]} 10. Ne1 {[%clk 0:00:42]} 10... Bd7 {[%clk 0:00:53.5]} 11. f4 {[%clk 0:00:41.7]} 11... Nf8 {[%clk 0:00:51.5]} 12. Bd3 {[%clk 0:00:41.4]} 12... b6 {[%clk 0:00:49.5]} 13. f5 {[%clk 0:00:40]} 13... c5 {[%clk 0:00:47.8]} 14. fxe6 {[%clk 0:00:39.1]} 14... Nxe6 {[%clk 0:00:47]} 15. cxd5 {[%clk 0:00:37.2]} 15... Nxd4 {[%clk 0:00:45.9]} 16. Be3 {[%clk 0:00:35.7]} 16... Nb5 {[%clk 0:00:43.3]} 17. d6 {[%clk 0:00:35.3]} 17... Bg5 {[%clk 0:00:40.9]} 18. Qf3 {[%clk 0:00:29.2]} 18... Rf8 {[%clk 0:00:38.5]} 19. Nd5 {[%clk 0:00:20.4]} 19... Bxe3+ {[%clk 0:00:34.9]} 20. Qxe3 {[%clk 0:00:19.6]} 20... Nc6 {[%clk 0:00:33.6]} 21. Qf3 {[%clk 0:00:19.2]} 21... Ncd4 {[%clk 0:00:32.3]} 22. Qf4 {[%clk 0:00:18.7]} 22... Ne2+ {[%clk 0:00:30.9]} 23. Bxe2 {[%clk 0:00:15.1]} 23... Qg5 {[%clk 0:00:27.4]} 24. Bh5 {[%clk 0:00:14.1]} 24... Qxf4 {[%clk 0:00:24.7]} 25. Rxf4 {[%clk 0:00:13.7]} 25... g6 {[%clk 0:00:24]} 26. a4 {[%clk 0:00:11]} 26... Nd4 {[%clk 0:00:21.9]} 27. Nc7+ {[%clk 0:00:09.4]} 27... Kd8 {[%clk 0:00:19.8]} 28. Nxa8 {[%clk 0:00:09]} 28... Nf5 {[%clk 0:00:16.8]} 29. Nxb6 {[%clk 0:00:08.5]} 29... gxh5 {[%clk 0:00:15]} 30. Nxd7 {[%clk 0:00:07.8]} 30... Kxd7 {[%clk 0:00:14]} 31. Rxf5 {[%clk 0:00:07.4]} 31... Ke6 {[%clk 0:00:12.8]} 32. Rf1 {[%clk 0:00:06]} 32... f6 {[%clk 0:00:11.2]} 33. Nd3 {[%clk 0:00:05.2]} 33... f5 {[%clk 0:00:09.7]} 34. Nxc5+ {[%clk 0:00:04.8]} 34... Kxe5 {[%clk 0:00:08.3]} 35. d7 {[%clk 0:00:03.2]} 35... Kd6 {[%clk 0:00:04.6]} 36. Rad1+ {[%clk 0:00:02.9]} 36... Kxc5 {[%clk 0:00:03.8]} 37. d8=Q {[%clk 0:00:01.9]} 37... Rxd8 {[%clk 0:00:02.5]} 38. Rxd8 {[%clk 0:00:01.6]} 38... Kc6 {[%clk 0:00:01.7]} 39. Rxf5 {[%clk 0:00:01.3]} 39... Kc7 {[%clk 0:00:01.5]} 0-1

[Event "Live Chess"]
[Site "Chess.com"]
[Date "2010.12.05"]
[Round "-"]
[White "1234qwer"]
[Black "hipposcottimus"]
[Result "1-0"]
[CurrentPosition "8/7p/6p1/8/8/6PP/6Q1/5k1K b - -"]
[Timezone "UTC"]
[ECO "C45"]
[ECOUrl "https://www.chess.com/openings/Scotch-Game"]
[UTCDate "2010.12.05"]
[UTCTime "03:21:22"]
[WhiteElo "1560"]
[BlackElo "1557"]
[TimeControl "60"]
[Termination "1234qwer won on time"]
[StartTime "03:21:22"]
[EndDate "2010.12.05"]
[EndTime "03:23:42"]
[Link "https://www.chess.com/game/live/74157784"]

1. e4 {[%clk 0:01:00]} 1... e5 {[%clk 0:01:00]} 2. Nf3 {[%clk 0:00:58.3]} 2... Nc6 {[%clk 0:00:59.6]} 3. d4 {[%clk 0:00:56.2]} 3... Nf6 {[%clk 0:00:59.3]} 4. d5 {[%clk 0:00:55.2]} 4... Ne7 {[%clk 0:00:57.9]} 5. Nc3 {[%clk 0:00:54.6]} 5... d6 {[%clk 0:00:57.5]} 6. Bc4 {[%clk 0:00:53.7]} 6... c6 {[%clk 0:00:57.2]} 7. O-O {[%clk 0:00:53.1]} 7... cxd5 {[%clk 0:00:55.5]} 8. exd5 {[%clk 0:00:53.1]} 8... Bg4 {[%clk 0:00:52]} 9. Be2 {[%clk 0:00:50.9]} 9... Nexd5 {[%clk 0:00:49.2]} 10. Nxd5 {[%clk 0:00:49.8]} 10... Bxf3 {[%clk 0:00:47.6]} 11. Bxf3 {[%clk 0:00:48.5]} 11... e4 {[%clk 0:00:47.2]} 12. Be2 {[%clk 0:00:46.9]} 12... Be7 {[%clk 0:00:44]} 13. Nxe7 {[%clk 0:00:45.6]} 13... Qxe7 {[%clk 0:00:42.4]} 14. f3 {[%clk 0:00:45.1]} 14... O-O {[%clk 0:00:42.1]} 15. fxe4 {[%clk 0:00:44.2]} 15... Nxe4 {[%clk 0:00:41.5]} 16. Bd3 {[%clk 0:00:43.1]} 16... d5 {[%clk 0:00:41.1]} 17. Bxe4 {[%clk 0:00:41.9]} 17... Qc5+ {[%clk 0:00:39.2]} 18. Kh1 {[%clk 0:00:39.4]} 18... dxe4 {[%clk 0:00:38.6]} 19. Qe2 {[%clk 0:00:35.4]} 19... Rad8 {[%clk 0:00:37.6]} 20. Be3 {[%clk 0:00:33.6]} 20... Rfe8 {[%clk 0:00:37.4]} 21. Bxc5 {[%clk 0:00:32.5]} 21... e3 {[%clk 0:00:35.7]} 22. Rf3 {[%clk 0:00:30.9]} 22... b6 {[%clk 0:00:33.9]} 23. Bxe3 {[%clk 0:00:30]} 23... f5 {[%clk 0:00:31.1]} 24. Bf4 {[%clk 0:00:29.1]} 24... Rxe2 {[%clk 0:00:29.3]} 25. Rg1 {[%clk 0:00:25.5]} 25... Rxc2 {[%clk 0:00:29]} 26. Rg3 {[%clk 0:00:24.2]} 26... Rxb2 {[%clk 0:00:28.2]} 27. Be5 {[%clk 0:00:23.6]} 27... g6 {[%clk 0:00:26.6]} 28. Bxb2 {[%clk 0:00:22.1]} 28... Rd2 {[%clk 0:00:24.9]} 29. Rc3 {[%clk 0:00:20.7]} 29... Rxb2 {[%clk 0:00:23.1]} 30. Ra3 {[%clk 0:00:19.1]} 30... Re2 {[%clk 0:00:20.5]} 31. g3 {[%clk 0:00:18.2]} 31... Re8 {[%clk 0:00:20]} 32. Rd1 {[%clk 0:00:17.3]} 32... Ra8 {[%clk 0:00:19.4]} 33. Rd7 {[%clk 0:00:16.8]} 33... a6 {[%clk 0:00:18.8]} 34. Rad3 {[%clk 0:00:16.8]} 34... b5 {[%clk 0:00:18.1]} 35. Rd8+ {[%clk 0:00:16.8]} 35... Rxd8 {[%clk 0:00:17.3]} 36. Rxd8+ {[%clk 0:00:16.8]} 36... Kf7 {[%clk 0:00:15.6]} 37. Rd7+ {[%clk 0:00:16.8]} 37... Ke6 {[%clk 0:00:15.1]} 38. Ra7 {[%clk 0:00:16.8]} 38... b4 {[%clk 0:00:11.7]} 39. Rxa6+ {[%clk 0:00:16.8]} 39... Ke5 {[%clk 0:00:09.9]} 40. Ra5+ {[%clk 0:00:16.8]} 40... Ke4 {[%clk 0:00:09.6]} 41. a3 {[%clk 0:00:16.8]} 41... b3 {[%clk 0:00:08.4]} 42. Rb5 {[%clk 0:00:16]} 42... b2 {[%clk 0:00:07.4]} 43. Rxb2 {[%clk 0:00:16]} 43... f4 {[%clk 0:00:07.1]} 44. a4 {[%clk 0:00:15.6]} 44... f3 {[%clk 0:00:06.2]} 45. a5 {[%clk 0:00:15.6]} 45... Ke3 {[%clk 0:00:05.4]} 46. Rf2 {[%clk 0:00:15.6]} 46... Kxf2 {[%clk 0:00:04]} 47. a6 {[%clk 0:00:13.8]} 47... Ke2 {[%clk 0:00:03.8]} 48. a7 {[%clk 0:00:13.3]} 48... f2 {[%clk 0:00:03.4]} 49. h3 {[%clk 0:00:12.7]} 49... f1=Q+ {[%clk 0:00:02.1]} 50. Kh2 {[%clk 0:00:12.7]} 50... Qf2+ {[%clk 0:00:01.5]} 51. Kh1 {[%clk 0:00:11.5]} 51... Kf1 {[%clk 0:00:00.7]} 52. a8=Q {[%clk 0:00:09.3]} 52... Qg2+ {[%clk 0:00:00.1]} 53. Qxg2+ {[%clk 0:00:06.6]} 1-0

[Event "Live Chess"]
[Site "Chess.com"]
[Date "2010.12.05"]
[Round "-"]
[White "miker555"]
[Black "hipposcottimus"]
[Result "0-1"]
[CurrentPosition "r1b2rk1/ppp3pp/8/4p3/4Q3/2P5/4NqPP/1N3K2 w - -"]
[Timezone "UTC"]
[ECO "C24"]
[ECOUrl "https://www.chess.com/openings/Bishops-Opening-Berlin-Defense"]
[UTCDate "2010.12.05"]
[UTCTime "03:19:21"]
[WhiteElo "1404"]
[BlackElo "1565"]
[TimeControl "60"]
[Termination "hipposcottimus won by checkmate"]
[StartTime "03:19:21"]
[EndDate "2010.12.05"]
[EndTime "03:20:54"]
[Link "https://www.chess.com/game/live/74157368"]

1. e4 {[%clk 0:01:00]} 1... e5 {[%clk 0:01:00]} 2. Bc4 {[%clk 0:00:59.6]} 2... Nf6 {[%clk 0:00:57.7]} 3. Qf3 {[%clk 0:00:59]} 3... Nc6 {[%clk 0:00:57.1]} 4. b3 {[%clk 0:00:58.5]} 4... Nd4 {[%clk 0:00:56.4]} 5. Qd1 {[%clk 0:00:56.2]} 5... d5 {[%clk 0:00:54.9]} 6. Bb2 {[%clk 0:00:55.7]} 6... dxc4 {[%clk 0:00:53.8]} 7. Bxd4 {[%clk 0:00:50.7]} 7... Qxd4 {[%clk 0:00:52.5]} 8. bxc4 {[%clk 0:00:47.3]} 8... Qxa1 {[%clk 0:00:50.6]} 9. c3 {[%clk 0:00:44.1]} 9... Qxa2 {[%clk 0:00:49.7]} 10. Qc2 {[%clk 0:00:42.2]} 10... Qxc4 {[%clk 0:00:48.4]} 11. Ne2 {[%clk 0:00:41.2]} 11... Nxe4 {[%clk 0:00:46.5]} 12. O-O {[%clk 0:00:39.1]} 12... Bc5 {[%clk 0:00:41.5]} 13. d3 {[%clk 0:00:31.8]} 13... Bxf2+ {[%clk 0:00:38.6]} 14. Rxf2 {[%clk 0:00:29.6]} 14... Qc5 {[%clk 0:00:38.3]} 15. dxe4 {[%clk 0:00:26.7]} 15... O-O {[%clk 0:00:36.5]} 16. Qd3 {[%clk 0:00:21.7]} 16... f5 {[%clk 0:00:34.6]} 17. Kf1 {[%clk 0:00:10.9]} 17... fxe4 {[%clk 0:00:30.8]} 18. Qxe4 {[%clk 0:00:09.3]} 18... Qxf2# {[%clk 0:00:27.2]} 0-1

[Event "Live Chess"]
[Site "Chess.com"]
[Date "2010.12.05"]
[Round "-"]
[White "hipposcottimus"]
[Black "totenking"]
[Result "0-1"]
[CurrentPosition "r1bqk2r/5ppp/p3p3/2bp4/8/1B3P2/PP3nPP/RNBQ1K2 b kq -"]
[Timezone "UTC"]
[ECO "B30"]
[ECOUrl "https://www.chess.com/openings/Sicilian-Defense-Old-Sicilian-Variation-3.Bc4-e6"]
[UTCDate "2010.12.05"]
[UTCTime "03:17:59"]
[WhiteElo "1560"]
[BlackElo "1703"]
[TimeControl "60"]
[Termination "totenking won by resignation"]
[StartTime "03:17:59"]
[EndDate "2010.12.05"]
[EndTime "03:18:47"]
[Link "https://www.chess.com/game/live/74157095"]

1. e4 {[%clk 0:01:00]} 1... c5 {[%clk 0:01:00]} 2. Nf3 {[%clk 0:00:59]} 2... Nc6 {[%clk 0:00:59.7]} 3. Bc4 {[%clk 0:00:56.9]} 3... e6 {[%clk 0:00:57.8]} 4. d4 {[%clk 0:00:56.6]} 4... cxd4 {[%clk 0:00:55.7]} 5. Nxd4 {[%clk 0:00:54.4]} 5... a6 {[%clk 0:00:55.1]} 6. Nxc6 {[%clk 0:00:52.8]} 6... bxc6 {[%clk 0:00:54.2]} 7. O-O {[%clk 0:00:49.8]} 7... d5 {[%clk 0:00:53.2]} 8. Bb3 {[%clk 0:00:47.3]} 8... Nf6 {[%clk 0:00:51]} 9. c4 {[%clk 0:00:46.3]} 9... Nxe4 {[%clk 0:00:49.1]} 10. cxd5 {[%clk 0:00:45.1]} 10... cxd5 {[%clk 0:00:48.2]} 11. f3 {[%clk 0:00:42]} 11... Bc5+ {[%clk 0:00:47.1]} 12. Rf2 {[%clk 0:00:35.6]} 12... Nxf2 {[%clk 0:00:44.9]} 13. Kf1 {[%clk 0:00:34.3]} 0-1

[Event "Live Chess"]
[Site "Chess.com"]
[Date "2010.12.05"]
[Round "-"]
[White "tuckerjames"]
[Black "hipposcottimus"]
[Result "1-0"]
[CurrentPosition "r1b1r1k1/pp1n2pp/2q5/2PBPp2/1P6/2P3P1/PB3P1P/R2QK1NR b KQ -"]
[Timezone "UTC"]
[ECO "A00"]
[ECOUrl "https://www.chess.com/openings/Vant-Kruijs-Opening-1...e5"]
[UTCDate "2010.12.05"]
[UTCTime "02:36:46"]
[WhiteElo "1591"]
[BlackElo "1560"]
[TimeControl "60"]
[Termination "tuckerjames won by resignation"]
[StartTime "02:36:46"]
[EndDate "2010.12.05"]
[EndTime "02:37:44"]
[Link "https://www.chess.com/game/live/74149028"]

1. e3 {[%clk 0:01:00]} 1... e5 {[%clk 0:01:00]} 2. b3 {[%clk 0:00:59.6]} 2... d5 {[%clk 0:00:59.6]} 3. Bb2 {[%clk 0:00:59.3]} 3... d4 {[%clk 0:00:59.3]} 4. g3 {[%clk 0:00:58.6]} 4... f5 {[%clk 0:00:56.6]} 5. Bg2 {[%clk 0:00:57.7]} 5... Nf6 {[%clk 0:00:56.2]} 6. d3 {[%clk 0:00:57.1]} 6... c6 {[%clk 0:00:55.8]} 7. exd4 {[%clk 0:00:56.4]} 7... Nbd7 {[%clk 0:00:55.6]} 8. dxe5 {[%clk 0:00:54.9]} 8... Nd5 {[%clk 0:00:55.2]} 9. d4 {[%clk 0:00:53.4]} 9... Bb4+ {[%clk 0:00:51.8]} 10. c3 {[%clk 0:00:52.1]} 10... Ba5 {[%clk 0:00:51.6]} 11. b4 {[%clk 0:00:51.3]} 11... Bb6 {[%clk 0:00:50.5]} 12. Na3 {[%clk 0:00:50.5]} 12... O-O {[%clk 0:00:48.6]} 13. Nc4 {[%clk 0:00:49.8]} 13... c5 {[%clk 0:00:42.4]} 14. Nxb6 {[%clk 0:00:48.3]} 14... Qxb6 {[%clk 0:00:42.1]} 15. dxc5 {[%clk 0:00:46.2]} 15... Qb5 {[%clk 0:00:41.8]} 16. Bf1 {[%clk 0:00:44.9]} 16... Qc6 {[%clk 0:00:39.9]} 17. Bg2 {[%clk 0:00:43.7]} 17... Re8 {[%clk 0:00:28.7]} 18. Bxd5+ {[%clk 0:00:42.3]} 1-0

[Event "Live Chess"]
[Site "Chess.com"]
[Date "2010.12.05"]
[Round "-"]
[White "hipposcottimus"]
[Black "Damavand"]
[Result "0-1"]
[CurrentPosition "6k1/p3p3/2p3pb/7p/1B2p2P/1PPb2P1/P2r4/4R1K1 w - -"]
[Timezone "UTC"]
[ECO "A06"]
[ECOUrl "https://www.chess.com/openings/Reti-Opening-Tennison-Gambit"]
[UTCDate "2010.12.05"]
[UTCTime "02:34:06"]
[WhiteElo "1568"]
[BlackElo "1527"]
[TimeControl "60"]
[Termination "Damavand won on time"]
[StartTime "02:34:06"]
[EndDate "2010.12.05"]
[EndTime "02:36:15"]
[Link "https://www.chess.com/game/live/74148454"]

1. e4 {[%clk 0:01:00]} 1... d5 {[%clk 0:01:00]} 2. Nf3 {[%clk 0:00:59.8]} 2... dxe4 {[%clk 0:00:59.1]} 3. Ng5 {[%clk 0:00:59.6]} 3... Nf6 {[%clk 0:00:57.2]} 4. f3 {[%clk 0:00:58.9]} 4... h6 {[%clk 0:00:56.6]} 5. Nxe4 {[%clk 0:00:57.2]} 5... Nxe4 {[%clk 0:00:55.3]} 6. fxe4 {[%clk 0:00:57]} 6... g6 {[%clk 0:00:50.7]} 7. Be2 {[%clk 0:00:55]} 7... Bg7 {[%clk 0:00:50.1]} 8. O-O {[%clk 0:00:54.6]} 8... Nc6 {[%clk 0:00:49.4]} 9. d4 {[%clk 0:00:54.2]} 9... Qxd4+ {[%clk 0:00:46.8]} 10. Kh1 {[%clk 0:00:51.9]} 10... Qxd1 {[%clk 0:00:45.4]} 11. Rxd1 {[%clk 0:00:51.7]} 11... Nb4 {[%clk 0:00:44.7]} 12. Na3 {[%clk 0:00:49.5]} 12... Be6 {[%clk 0:00:41.2]} 13. c3 {[%clk 0:00:48]} 13... Nc6 {[%clk 0:00:39.5]} 14. Bb5 {[%clk 0:00:47.2]} 14... O-O {[%clk 0:00:37.9]} 15. Bxc6 {[%clk 0:00:45.1]} 15... bxc6 {[%clk 0:00:36.9]} 16. Bf4 {[%clk 0:00:38.6]} 16... Rfd8 {[%clk 0:00:34.9]} 17. Rxd8+ {[%clk 0:00:35.6]} 17... Rxd8 {[%clk 0:00:34.9]} 18. Bxc7 {[%clk 0:00:35]} 18... Rd7 {[%clk 0:00:33.7]} 19. Ba5 {[%clk 0:00:32.9]} 19... f5 {[%clk 0:00:29.3]} 20. Bb4 {[%clk 0:00:32.6]} 20... fxe4 {[%clk 0:00:26.8]} 21. Re1 {[%clk 0:00:32.3]} 21... Bf5 {[%clk 0:00:25.5]} 22. Kg1 {[%clk 0:00:31.7]} 22... Rd2 {[%clk 0:00:22.2]} 23. Nc4 {[%clk 0:00:25.3]} 23... Rd3 {[%clk 0:00:18.1]} 24. Kf2 {[%clk 0:00:18.2]} 24... h5 {[%clk 0:00:16.4]} 25. g3 {[%clk 0:00:13.7]} 25... Bh6 {[%clk 0:00:15.4]} 26. Ke2 {[%clk 0:00:12.3]} 26... Rd7 {[%clk 0:00:11.7]} 27. Kf2 {[%clk 0:00:11.4]} 27... Be6 {[%clk 0:00:07.3]} 28. h4 {[%clk 0:00:09.1]} 28... Bxc4 {[%clk 0:00:06.2]} 29. b3 {[%clk 0:00:06]} 29... Rd2+ {[%clk 0:00:05.1]} 30. Kg1 {[%clk 0:00:01.8]} 30... Bd3 {[%clk 0:00:04.5]} 0-1